[Event "Early-Titled-Tuesday-Blitz-March-19-2024"]
[Site "Chess.com"]
[Date "2024.03.19"]
[Round "2"]
[White "ansko1999"]
[Black "AndresDelgado77"]
[Result "0-1"]
[WhiteElo "2631"]
[BlackElo "2324"]
[TimeControl "180+1"]
[EndTime "8:18:39 PDT"]
[Termination "AndresDelgado77 won on time"]

1. Nf3 {[%clk 0:03:00.9]} 1... Nf6 {[%clk 0:02:54.7]} 2. d4 {[%clk 0:02:55.3]}
2... g6 {[%clk 0:02:54.3]} 3. g3 {[%clk 0:02:54.1]} 3... Bg7 {[%clk 0:02:54.4]}
4. Bg2 {[%clk 0:02:54.7]} 4... O-O {[%clk 0:02:55]} 5. O-O {[%clk 0:02:55]} 5...
d6 {[%clk 0:02:55.5]} 6. b3 {[%clk 0:02:54.5]} 6... c5 {[%clk 0:02:46.9]} 7. Bb2
{[%clk 0:02:42.6]} 7... Ne4 {[%clk 0:02:46]} 8. c4 {[%clk 0:02:28.5]} 8... Nc6
{[%clk 0:02:44]} 9. Qc1 {[%clk 0:02:05.6]} 9... cxd4 {[%clk 0:02:35.9]} 10. Rd1
{[%clk 0:02:03.7]} 10... Qb6 {[%clk 0:02:17.1]} 11. Na3 {[%clk 0:01:34.2]} 11...
a6 {[%clk 0:01:50.4]} 12. c5 {[%clk 0:00:43.4]} 12... Qxc5 {[%clk 0:01:45]} 13.
Qxc5 {[%clk 0:00:33.1]} 13... dxc5 {[%clk 0:01:25.1]} 14. Nxd4 {[%clk
0:00:32.9]} 14... Nxd4 {[%clk 0:01:23.1]} 15. Bxd4 {[%clk 0:00:16.2]} 15... Bxd4
{[%clk 0:01:21.7]} 16. Bxe4 {[%clk 0:00:15.7]} 16... Bxa1 {[%clk 0:01:20.6]} 17.
Rxa1 {[%clk 0:00:16.6]} 17... Rb8 {[%clk 0:01:17.2]} 18. Nc4 {[%clk 0:00:15.5]}
18... Rd8 {[%clk 0:00:54.3]} 19. Rc1 {[%clk 0:00:09.6]} 19... b6 {[%clk
0:00:43]} 20. Ne5 {[%clk 0:00:09.2]} 20... Bb7 {[%clk 0:00:40.3]} 21. Bd3 {[%clk
0:00:06.8]} 21... Bd5 {[%clk 0:00:31.6]} 22. f3 {[%clk 0:00:05.2]} 22... f6
{[%clk 0:00:30.6]} 23. Ng4 {[%clk 0:00:05.6]} 23... Bb7 {[%clk 0:00:28.1]} 24.
Kf2 {[%clk 0:00:05.5]} 24... Kg7 {[%clk 0:00:28]} 25. h4 {[%clk 0:00:06]} 25...
h5 {[%clk 0:00:28.3]} 26. Ne3 {[%clk 0:00:06.5]} 26... e6 {[%clk 0:00:27.3]} 27.
Nc4 {[%clk 0:00:07]} 27... Bd5 {[%clk 0:00:26.5]} 28. Ne3 {[%clk 0:00:06.6]}
28... Rd6 {[%clk 0:00:23.6]} 29. Rc3 {[%clk 0:00:07]} 29... Rc8 {[%clk
0:00:22.5]} 30. Ng2 {[%clk 0:00:07.4]} 30... b5 {[%clk 0:00:22.3]} 31. Nf4
{[%clk 0:00:07.3]} 31... f5 {[%clk 0:00:16.9]} 32. e4 {[%clk 0:00:06.5]} 32...
Bb7 {[%clk 0:00:13.5]} 33. e5 {[%clk 0:00:06.1]} 33... Rb6 {[%clk 0:00:13.4]}
34. Ke3 {[%clk 0:00:04.1]} 34... c4 {[%clk 0:00:13.1]} 35. bxc4 {[%clk
0:00:04.2]} 35... b4 {[%clk 0:00:11.7]} 36. Rb3 {[%clk 0:00:04.7]} 36... a5
{[%clk 0:00:12]} 37. Ne2 {[%clk 0:00:04.2]} 37... a4 {[%clk 0:00:11.7]} 38. Rb1
{[%clk 0:00:03.9]} 38... Ba6 {[%clk 0:00:11]} 39. Nd4 {[%clk 0:00:04.2]} 39...
Bxc4 {[%clk 0:00:10.2]} 40. Rc1 {[%clk 0:00:04.9]} 40... Ba6 {[%clk 0:00:09.2]}
41. Rb1 {[%clk 0:00:02.6]} 41... Bxd3 {[%clk 0:00:08.6]} 42. Kxd3 {[%clk
0:00:03.3]} 42... Rc3+ {[%clk 0:00:09.1]} 43. Kd2 {[%clk 0:00:03]} 43... Ra3
{[%clk 0:00:09.3]} 44. Ke1 {[%clk 0:00:01.7]} 44... Rxa2 {[%clk 0:00:08.3]} 45.
Rc1 {[%clk 0:00:02.4]} 45... b3 {[%clk 0:00:07.9]} 46. Rc7+ {[%clk 0:00:02.9]}
46... Kf8 {[%clk 0:00:07.9]} 0-1

[Event "Early-Titled-Tuesday-Blitz-March-19-2024"]
[Site "Chess.com"]
[Date "2024.03.19"]
[Round "2"]
[White "AlessiaSanteramo"]
[Black "AwareIdea"]
[Result "1/2-1/2"]
[WhiteElo "2259"]
[BlackElo "2516"]
[TimeControl "180+1"]
[EndTime "8:18:39 PDT"]
[Termination "Game drawn - insufficient material"]

1. e4 {[%clk 0:03:00.9]} 1... Nc6 {[%clk 0:02:58.8]} 2. Nf3 {[%clk 0:02:51.6]}
2... d5 {[%clk 0:02:58]} 3. exd5 {[%clk 0:02:46]} 3... Qxd5 {[%clk 0:02:58.9]}
4. Nc3 {[%clk 0:02:45.6]} 4... Qh5 {[%clk 0:02:58.4]} 5. Be2 {[%clk 0:02:39.4]}
5... Bg4 {[%clk 0:02:57.7]} 6. d4 {[%clk 0:02:12]} 6... O-O-O {[%clk 0:02:49.7]}
7. Be3 {[%clk 0:01:51.6]} 7... e5 {[%clk 0:02:43.1]} 8. d5 {[%clk 0:01:50.5]}
8... Bb4 {[%clk 0:02:36.2]} 9. Qc1 {[%clk 0:01:29.4]} 9... Rxd5 {[%clk
0:02:29.5]} 10. O-O {[%clk 0:01:22]} 10... Rd8 {[%clk 0:02:22.5]} 11. h3 {[%clk
0:01:21]} 11... Nf6 {[%clk 0:02:10.5]} 12. hxg4 {[%clk 0:01:09.9]} 12... Nxg4
{[%clk 0:02:11.4]} 13. Ne4 {[%clk 0:01:09.7]} 13... f5 {[%clk 0:02:05.7]} 14.
Ng3 {[%clk 0:01:09.7]} 14... Qf7 {[%clk 0:01:47.8]} 15. Bg5 {[%clk 0:01:04.5]}
15... Rdf8 {[%clk 0:01:32.3]} 16. c3 {[%clk 0:01:03.8]} 16... Bc5 {[%clk
0:01:30.8]} 17. b4 {[%clk 0:01:03.6]} 17... Bb6 {[%clk 0:01:31]} 18. b5 {[%clk
0:01:01.7]} 18... Ne7 {[%clk 0:01:21.3]} 19. Bxe7 {[%clk 0:00:36]} 19... Qxe7
{[%clk 0:01:22.2]} 20. a4 {[%clk 0:00:36.7]} 20... e4 {[%clk 0:01:15.4]} 21. Nd4
{[%clk 0:00:34.4]} 21... h5 {[%clk 0:00:59]} 22. Ngxf5 {[%clk 0:00:22.7]} 22...
Qe5 {[%clk 0:00:52.9]} 23. Bxg4 {[%clk 0:00:12.8]} 23... hxg4 {[%clk 0:00:51.8]}
24. g3 {[%clk 0:00:09.8]} 24... Rh5 {[%clk 0:00:41.7]} 25. Qf4 {[%clk
0:00:08.6]} 25... Qxf4 {[%clk 0:00:28.7]} 26. gxf4 {[%clk 0:00:09.5]} 26...
Rfxf5 {[%clk 0:00:27.3]} 27. Nxf5 {[%clk 0:00:10.4]} 27... Rxf5 {[%clk
0:00:27.5]} 28. Kg2 {[%clk 0:00:09.3]} 28... Rxf4 {[%clk 0:00:27.4]} 29. Rad1
{[%clk 0:00:09.7]} 29... a6 {[%clk 0:00:21.5]} 30. Rh1 {[%clk 0:00:09.4]} 30...
Rxf2+ {[%clk 0:00:18.5]} 31. Kg3 {[%clk 0:00:09.1]} 31... Rf8 {[%clk 0:00:18.3]}
32. Kxg4 {[%clk 0:00:09.1]} 32... axb5 {[%clk 0:00:18.3]} 33. axb5 {[%clk
0:00:09]} 33... e3 {[%clk 0:00:18.7]} 34. Rhe1 {[%clk 0:00:08.5]} 34... Kb8
{[%clk 0:00:18.3]} 35. Rd5 {[%clk 0:00:08.5]} 35... Re8 {[%clk 0:00:10]} 36. Kf4
{[%clk 0:00:06.3]} 36... Rf8+ {[%clk 0:00:09.5]} 37. Kg5 {[%clk 0:00:05.3]}
37... Re8 {[%clk 0:00:06.7]} 38. c4 {[%clk 0:00:05.8]} 38... Ba5 {[%clk
0:00:06.1]} 39. Re2 {[%clk 0:00:05.6]} 39... Bb6 {[%clk 0:00:02.5]} 40. c5
{[%clk 0:00:04]} 40... Ba5 {[%clk 0:00:02.2]} 41. Rd3 {[%clk 0:00:04.5]} 41...
c6 {[%clk 0:00:01.8]} 42. bxc6 {[%clk 0:00:03.4]} 42... bxc6 {[%clk 0:00:02.7]}
43. Rdxe3 {[%clk 0:00:04.1]} 43... Rxe3 {[%clk 0:00:02.8]} 44. Rxe3 {[%clk
0:00:05]} 44... Bb4 {[%clk 0:00:03.5]} 45. Re8+ {[%clk 0:00:05.3]} 45... Kb7
{[%clk 0:00:03.8]} 46. Re5 {[%clk 0:00:06.1]} 46... Ka6 {[%clk 0:00:04.7]} 47.
Kg6 {[%clk 0:00:06.6]} 47... Kb5 {[%clk 0:00:05.6]} 48. Kxg7 {[%clk 0:00:06.3]}
48... Bxc5 {[%clk 0:00:06.5]} 49. Kf6 {[%clk 0:00:07.1]} 49... Kc4 {[%clk
0:00:05.2]} 50. Re6 {[%clk 0:00:08]} 50... Bd4+ {[%clk 0:00:05.7]} 51. Kf7
{[%clk 0:00:08.1]} 51... c5 {[%clk 0:00:06.6]} 52. Rc6 {[%clk 0:00:08.6]} 52...
Kd3 {[%clk 0:00:07.3]} 53. Rxc5 {[%clk 0:00:09.5]} 53... Bxc5 {[%clk 0:00:07.3]}
1/2-1/2

[Event "Early-Titled-Tuesday-Blitz-March-19-2024"]
[Site "Chess.com"]
[Date "2024.03.19"]
[Round "2"]
[White "MarijaKuznecova"]
[Black "GiorgianBarbosa"]
[Result "1-0"]
[WhiteElo "2373"]
[BlackElo "2555"]
[TimeControl "180+1"]
[EndTime "8:18:41 PDT"]
[Termination "MarijaKuznecova won by resignation"]

1. e4 {[%clk 0:02:57.8]} 1... c5 {[%clk 0:02:59.7]} 2. Nf3 {[%clk 0:02:57.3]}
2... g6 {[%clk 0:03:00.6]} 3. d4 {[%clk 0:02:56.8]} 3... cxd4 {[%clk 0:03:01.5]}
4. Nxd4 {[%clk 0:02:57.5]} 4... Bg7 {[%clk 0:03:01.5]} 5. Nc3 {[%clk 0:02:57.6]}
5... Nc6 {[%clk 0:03:01.7]} 6. Be3 {[%clk 0:02:57.9]} 6... Nf6 {[%clk 0:03:02]}
7. Bc4 {[%clk 0:02:58]} 7... O-O {[%clk 0:03:02]} 8. Bb3 {[%clk 0:02:58]} 8...
d6 {[%clk 0:03:00.4]} 9. f3 {[%clk 0:02:55.2]} 9... Bd7 {[%clk 0:02:59.7]} 10.
Qd2 {[%clk 0:02:55.1]} 10... Qa5 {[%clk 0:02:59.8]} 11. O-O {[%clk 0:02:48.5]}
11... Rac8 {[%clk 0:02:54.8]} 12. Nxc6 {[%clk 0:02:40.2]} 12... Bxc6 {[%clk
0:02:47.3]} 13. Nd5 {[%clk 0:02:39.5]} 13... Qd8 {[%clk 0:02:40.5]} 14. Nxf6+
{[%clk 0:02:16.5]} 14... Bxf6 {[%clk 0:02:39.5]} 15. Bd4 {[%clk 0:02:16.3]}
15... e6 {[%clk 0:02:19.3]} 16. Kh1 {[%clk 0:02:08.6]} 16... d5 {[%clk
0:01:59.8]} 17. e5 {[%clk 0:01:51.9]} 17... Be7 {[%clk 0:01:59.1]} 18. f4 {[%clk
0:01:51.1]} 18... b6 {[%clk 0:01:55]} 19. Rf3 {[%clk 0:01:48.8]} 19... Bc5
{[%clk 0:01:51.4]} 20. Rh3 {[%clk 0:01:42.4]} 20... Bxd4 {[%clk 0:01:33.6]} 21.
Qxd4 {[%clk 0:01:43.3]} 21... f6 {[%clk 0:01:24.4]} 22. Re1 {[%clk 0:01:18.8]}
22... fxe5 {[%clk 0:01:20.7]} 23. Qxe5 {[%clk 0:01:08.5]} 23... Qf6 {[%clk
0:01:05.6]} 24. Qxe6+ {[%clk 0:00:42.4]} 24... Qxe6 {[%clk 0:01:04.8]} 25. Rxe6
{[%clk 0:00:42.7]} 25... Rxf4 {[%clk 0:01:04.9]} 26. Rf3 {[%clk 0:00:41.1]}
26... Rxf3 {[%clk 0:00:58.5]} 27. gxf3 {[%clk 0:00:42]} 27... Kf8 {[%clk
0:00:55.4]} 28. Kg2 {[%clk 0:00:30.8]} 28... a5 {[%clk 0:00:40.3]} 29. a4 {[%clk
0:00:29.8]} 29... Rc7 {[%clk 0:00:39.3]} 30. Kf2 {[%clk 0:00:25.3]} 30... b5
{[%clk 0:00:17.8]} 31. axb5 {[%clk 0:00:13.6]} 31... Bxb5 {[%clk 0:00:18.7]} 32.
Rb6 {[%clk 0:00:12.4]} 32... Bd7 {[%clk 0:00:17.4]} 33. c3 {[%clk 0:00:10.3]}
33... a4 {[%clk 0:00:17.2]} 34. Bxd5 {[%clk 0:00:10.1]} 34... a3 {[%clk
0:00:17]} 35. bxa3 {[%clk 0:00:10.9]} 35... Rxc3 {[%clk 0:00:17.2]} 36. Ra6
{[%clk 0:00:10.3]} 36... Rc2+ {[%clk 0:00:15.8]} 37. Kg3 {[%clk 0:00:09.4]}
37... g5 {[%clk 0:00:13.9]} 38. Be4 {[%clk 0:00:08]} 38... h5 {[%clk 0:00:13.9]}
39. Bxc2 {[%clk 0:00:08.1]} 39... h4+ {[%clk 0:00:13.4]} 40. Kf2 {[%clk
0:00:08.8]} 40... Bc8 {[%clk 0:00:12.7]} 41. Ra8 {[%clk 0:00:08.9]} 41... Ke7
{[%clk 0:00:13.6]} 42. Rxc8 {[%clk 0:00:09.4]} 42... Kf6 {[%clk 0:00:14.5]} 43.
Rc6+ {[%clk 0:00:09.6]} 43... Ke5 {[%clk 0:00:13.7]} 44. a4 {[%clk 0:00:10]}
44... Kf4 {[%clk 0:00:14.6]} 45. a5 {[%clk 0:00:10.3]} 45... g4 {[%clk
0:00:15.5]} 46. Rc4+ {[%clk 0:00:10]} 46... Ke5 {[%clk 0:00:15.3]} 47. Rxg4
{[%clk 0:00:10.6]} 1-0

[Event "Early-Titled-Tuesday-Blitz-March-19-2024"]
[Site "Chess.com"]
[Date "2024.03.19"]
[Round "2"]
[White "Sadykov_Ramil"]
[Black "the_chess_child"]
[Result "0-1"]
[WhiteElo "2608"]
[BlackElo "2866"]
[TimeControl "180+1"]
[EndTime "8:18:42 PDT"]
[Termination "the_chess_child won on time"]

1. e4 {[%clk 0:03:00.9]} 1... c5 {[%clk 0:02:57.5]} 2. Nf3 {[%clk 0:03:01.3]}
2... e6 {[%clk 0:02:57.4]} 3. c4 {[%clk 0:03:00.2]} 3... Nc6 {[%clk 0:02:57]} 4.
Nc3 {[%clk 0:02:59.7]} 4... e5 {[%clk 0:02:51.2]} 5. Be2 {[%clk 0:02:57.2]} 5...
d6 {[%clk 0:02:51.6]} 6. O-O {[%clk 0:02:57.5]} 6... g6 {[%clk 0:02:52]} 7. d3
{[%clk 0:02:52.8]} 7... Bg7 {[%clk 0:02:52.3]} 8. Rb1 {[%clk 0:02:48.4]} 8...
Nge7 {[%clk 0:02:51]} 9. a3 {[%clk 0:02:47.6]} 9... a5 {[%clk 0:02:48.8]} 10.
Ne1 {[%clk 0:02:31.2]} 10... O-O {[%clk 0:02:45.9]} 11. Bg5 {[%clk 0:02:31.1]}
11... f6 {[%clk 0:02:45.7]} 12. Bh4 {[%clk 0:02:29.6]} 12... Be6 {[%clk
0:02:41.5]} 13. Nc2 {[%clk 0:02:27.1]} 13... a4 {[%clk 0:01:47.8]} 14. Bg4
{[%clk 0:02:11.4]} 14... f5 {[%clk 0:01:46.4]} 15. Bh3 {[%clk 0:02:11.1]} 15...
h6 {[%clk 0:01:41.7]} 16. Bxe7 {[%clk 0:02:08]} 16... Qxe7 {[%clk 0:01:38.7]}
17. Ne3 {[%clk 0:02:05.7]} 17... Nd4 {[%clk 0:01:37.9]} 18. Nxa4 {[%clk
0:02:02.9]} 18... f4 {[%clk 0:01:38.2]} 19. Nd5 {[%clk 0:01:42.5]} 19... Bxd5
{[%clk 0:01:37.4]} 20. exd5 {[%clk 0:01:35]} 20... f3 {[%clk 0:01:36]} 21. g3
{[%clk 0:01:35]} 21... Qg5 {[%clk 0:01:35.6]} 22. Re1 {[%clk 0:01:25.4]} 22...
Qh5 {[%clk 0:01:18.9]} 23. Bf1 {[%clk 0:01:24.2]} 23... Rf5 {[%clk 0:01:14.3]}
24. Nc3 {[%clk 0:01:15.4]} 24... Qg5 {[%clk 0:01:05.3]} 25. Ne4 {[%clk
0:01:13.2]} 25... Qe7 {[%clk 0:01:05.4]} 26. b4 {[%clk 0:01:02.7]} 26... cxb4
{[%clk 0:01:04.8]} 27. axb4 {[%clk 0:01:02.5]} 27... Bf8 {[%clk 0:01:02.1]} 28.
c5 {[%clk 0:00:59.9]} 28... Qf7 {[%clk 0:00:57.2]} 29. cxd6 {[%clk 0:00:33.2]}
29... Qxd5 {[%clk 0:00:55.8]} 30. Bh3 {[%clk 0:00:28.2]} 30... Rf7 {[%clk
0:00:54.4]} 31. d7 {[%clk 0:00:25]} 31... Kg7 {[%clk 0:00:50.6]} 32. Rc1 {[%clk
0:00:22.9]} 32... Ra2 {[%clk 0:00:40]} 33. Rc8 {[%clk 0:00:21]} 33... Rxd7
{[%clk 0:00:39.2]} 34. Rxf8 {[%clk 0:00:11.8]} 34... Ne2+ {[%clk 0:00:29.5]} 35.
Kh1 {[%clk 0:00:11.2]} 35... Kxf8 {[%clk 0:00:20.6]} 36. Nf6 {[%clk 0:00:11.4]}
36... Qd4 {[%clk 0:00:21.1]} 37. Qb3 {[%clk 0:00:05.5]} 37... Rf7 {[%clk
0:00:15.7]} 38. Qe6 {[%clk 0:00:04.7]} 38... Qxf2 {[%clk 0:00:14.9]} 39. Nd7+
{[%clk 0:00:01.9]} 39... Rxd7 {[%clk 0:00:11.6]} 40. Qf6+ {[%clk 0:00:02.2]}
40... Rf7 {[%clk 0:00:11.8]} 41. Qh8+ {[%clk 0:00:02.1]} 41... Ke7 {[%clk
0:00:12.1]} 42. Qxe5+ {[%clk 0:00:02.8]} 42... Kd8 {[%clk 0:00:11.4]} 43. Qd6+
{[%clk 0:00:02.9]} 43... Ke8 {[%clk 0:00:11.9]} 44. Qe5+ {[%clk 0:00:03.4]}
44... Re7 {[%clk 0:00:12.5]} 45. Qh8+ {[%clk 0:00:03.5]} 45... Kf7 {[%clk
0:00:13]} 46. Qh7+ {[%clk 0:00:03.8]} 46... Kf6 {[%clk 0:00:13.7]} 47. Qh8+
{[%clk 0:00:04.1]} 47... Kg5 {[%clk 0:00:14.2]} 0-1

[Event "Early-Titled-Tuesday-Blitz-March-19-2024"]
[Site "Chess.com"]
[Date "2024.03.19"]
[Round "2"]
[White "KuzubovYuriy"]
[Black "vladgoncharov"]
[Result "1-0"]
[WhiteElo "2903"]
[BlackElo "2620"]
[TimeControl "180+1"]
[EndTime "8:18:43 PDT"]
[Termination "KuzubovYuriy won by checkmate"]

1. d4 {[%clk 0:03:00.9]} 1... Nf6 {[%clk 0:02:59.1]} 2. Nf3 {[%clk 0:02:59.8]}
2... e6 {[%clk 0:02:58.9]} 3. c4 {[%clk 0:02:59.9]} 3... Bb4+ {[%clk 0:02:56.8]}
4. Bd2 {[%clk 0:02:59.6]} 4... Be7 {[%clk 0:02:54]} 5. Nc3 {[%clk 0:02:55.9]}
5... d5 {[%clk 0:02:52.9]} 6. cxd5 {[%clk 0:02:55.9]} 6... exd5 {[%clk
0:02:52.9]} 7. Bf4 {[%clk 0:02:56.6]} 7... c6 {[%clk 0:02:48.5]} 8. e3 {[%clk
0:02:57.1]} 8... O-O {[%clk 0:02:46.4]} 9. Bd3 {[%clk 0:02:56.1]} 9... Nbd7
{[%clk 0:02:42.4]} 10. Qc2 {[%clk 0:02:50.9]} 10... Re8 {[%clk 0:02:39.1]} 11.
O-O {[%clk 0:02:51]} 11... Nf8 {[%clk 0:02:34]} 12. h3 {[%clk 0:02:51]} 12...
Ng6 {[%clk 0:02:32.5]} 13. Bh2 {[%clk 0:02:50.4]} 13... Bd6 {[%clk 0:02:22.1]}
14. Bxd6 {[%clk 0:02:50.1]} 14... Qxd6 {[%clk 0:02:21.9]} 15. Rab1 {[%clk
0:02:50.7]} 15... a5 {[%clk 0:02:15.5]} 16. a3 {[%clk 0:02:50.7]} 16... Bd7
{[%clk 0:01:58.1]} 17. Rfe1 {[%clk 0:02:50.3]} 17... Re7 {[%clk 0:01:54.2]} 18.
b4 {[%clk 0:02:49.2]} 18... axb4 {[%clk 0:01:53.8]} 19. axb4 {[%clk 0:02:50.1]}
19... b5 {[%clk 0:01:54.1]} 20. Qb2 {[%clk 0:02:35.7]} 20... Ne4 {[%clk
0:01:47.7]} 21. Ra1 {[%clk 0:02:35.5]} 21... Rae8 {[%clk 0:01:28.6]} 22. Bf1
{[%clk 0:02:32.6]} 22... f5 {[%clk 0:01:23.7]} 23. Nd2 {[%clk 0:02:19.3]} 23...
Nxd2 {[%clk 0:01:19.5]} 24. Qxd2 {[%clk 0:02:19.2]} 24... Qxb4 {[%clk
0:01:19.2]} 25. Ra7 {[%clk 0:02:12.4]} 25... f4 {[%clk 0:01:08.6]} 26. Bd3
{[%clk 0:01:41.2]} 26... fxe3 {[%clk 0:01:03.9]} 27. Rxe3 {[%clk 0:01:38.8]}
27... Qd6 {[%clk 0:00:34.9]} 28. Bxg6 {[%clk 0:01:32.9]} 28... hxg6 {[%clk
0:00:34]} 29. Ne2 {[%clk 0:01:27.3]} 29... Bf5 {[%clk 0:00:29.2]} 30. Rexe7
{[%clk 0:01:17.6]} 30... Rxe7 {[%clk 0:00:29]} 31. Ra8+ {[%clk 0:01:17.9]} 31...
Kh7 {[%clk 0:00:28.8]} 32. Qg5 {[%clk 0:01:12.1]} 32... Qf6 {[%clk 0:00:26.6]}
33. Qd2 {[%clk 0:01:10.7]} 33... g5 {[%clk 0:00:26.3]} 34. Ng3 {[%clk
0:01:07.6]} 34... Bg6 {[%clk 0:00:26.4]} 35. Nf1 {[%clk 0:01:04.4]} 35... Qf4
{[%clk 0:00:24.3]} 36. Qc3 {[%clk 0:01:02]} 36... Re2 {[%clk 0:00:22]} 37. f3
{[%clk 0:00:55.8]} 37... Rc2 {[%clk 0:00:21.6]} 38. Qa1 {[%clk 0:00:48.2]} 38...
Rc1 {[%clk 0:00:19.7]} 39. Qb2 {[%clk 0:00:32.6]} 39... Qe3+ {[%clk 0:00:19.2]}
40. Qf2 {[%clk 0:00:27.6]} 40... Qd3 {[%clk 0:00:18.3]} 41. g4 {[%clk
0:00:25.1]} 41... b4 {[%clk 0:00:17.4]} 42. Rb8 {[%clk 0:00:24.5]} 42... b3
{[%clk 0:00:17.1]} 43. h4 {[%clk 0:00:21.2]} 43... Rc2 {[%clk 0:00:13.5]} 44.
Qe1 {[%clk 0:00:19.3]} 44... Re2 {[%clk 0:00:13]} 45. Qg3 {[%clk 0:00:19.1]}
45... Qxd4+ {[%clk 0:00:12.3]} 46. Kh1 {[%clk 0:00:19.8]} 46... Qf4 {[%clk
0:00:11.7]} 47. hxg5 {[%clk 0:00:17]} 47... Qxg3 {[%clk 0:00:10.8]} 48. Nxg3
{[%clk 0:00:17.9]} 48... Rb2 {[%clk 0:00:10.3]} 49. f4 {[%clk 0:00:18]} 49...
Be4+ {[%clk 0:00:09.6]} 50. Nxe4 {[%clk 0:00:18.1]} 50... dxe4 {[%clk 0:00:10]}
51. f5 {[%clk 0:00:18.9]} 51... c5 {[%clk 0:00:09.4]} 52. Rb7 {[%clk 0:00:14.4]}
52... c4 {[%clk 0:00:04.8]} 53. f6 {[%clk 0:00:14.6]} 53... Kg6 {[%clk
0:00:03.9]} 54. Rxg7# {[%clk 0:00:14.6]} 1-0

[Event "Early-Titled-Tuesday-Blitz-March-19-2024"]
[Site "Chess.com"]
[Date "2024.03.19"]
[Round "2"]
[White "1mbl4"]
[Black "MetiForce"]
[Result "1/2-1/2"]
[WhiteElo "2634"]
[BlackElo "2916"]
[TimeControl "180+1"]
[EndTime "8:18:46 PDT"]
[Termination "Game drawn by agreement"]

1. d4 {[%clk 0:03:00.9]} 1... Nf6 {[%clk 0:02:57.6]} 2. Bf4 {[%clk 0:03:00.9]}
2... d5 {[%clk 0:02:56.8]} 3. Nc3 {[%clk 0:02:59.1]} 3... a6 {[%clk 0:02:55.7]}
4. e3 {[%clk 0:02:59.1]} 4... c5 {[%clk 0:02:54.7]} 5. dxc5 {[%clk 0:02:59.1]}
5... Nc6 {[%clk 0:02:53.2]} 6. a3 {[%clk 0:02:59.2]} 6... d4 {[%clk 0:02:26.9]}
7. exd4 {[%clk 0:02:49.5]} 7... Nxd4 {[%clk 0:02:13.4]} 8. Nf3 {[%clk
0:02:29.8]} 8... Nxf3+ {[%clk 0:01:29.3]} 9. Qxf3 {[%clk 0:02:30.7]} 9... e5
{[%clk 0:01:02.6]} 10. Bxe5 {[%clk 0:01:29.6]} 10... Bxc5 {[%clk 0:01:01.4]} 11.
Bxf6 {[%clk 0:01:13.1]} 11... Qxf6 {[%clk 0:00:57.8]} 12. Qxf6 {[%clk
0:01:00.5]} 12... gxf6 {[%clk 0:00:58.7]} 13. Be2 {[%clk 0:01:00.7]} 13... Be6
{[%clk 0:00:53.8]} 14. Rd1 {[%clk 0:00:53.8]} 14... O-O {[%clk 0:00:48.1]} 15.
Bf3 {[%clk 0:00:53]} 15... Rad8 {[%clk 0:00:37]} 16. O-O {[%clk 0:00:52.5]}
16... b5 {[%clk 0:00:30.2]} 17. Rxd8 {[%clk 0:00:47]} 17... Rxd8 {[%clk
0:00:30]} 18. Rd1 {[%clk 0:00:47.7]} 18... Rb8 {[%clk 0:00:22.2]} 19. Nd5 {[%clk
0:00:42.6]} 19... Kg7 {[%clk 0:00:22.2]} 20. g3 {[%clk 0:00:39.5]} 20... Rd8
{[%clk 0:00:18.9]} 21. Nf4 {[%clk 0:00:38.3]} 21... Rb8 {[%clk 0:00:18.4]} 22.
Nxe6+ {[%clk 0:00:37.9]} 22... fxe6 {[%clk 0:00:19.3]} 23. Rd7+ {[%clk
0:00:38.7]} 23... Kg6 {[%clk 0:00:19.3]} 24. h4 {[%clk 0:00:38.4]} 24... f5
{[%clk 0:00:16.4]} 25. h5+ {[%clk 0:00:35.4]} 25... Kh6 {[%clk 0:00:16.6]} 26.
Rc7 {[%clk 0:00:35.8]} 26... Bd4 {[%clk 0:00:10.8]} 27. Rc6 {[%clk 0:00:33]}
27... Rb6 {[%clk 0:00:10.5]} 28. Rxb6 {[%clk 0:00:29.2]} 28... Bxb6 {[%clk
0:00:11.4]} 29. Bb7 {[%clk 0:00:29.6]} 29... a5 {[%clk 0:00:10.5]} 30. Bc8
{[%clk 0:00:24.9]} 30... Kxh5 {[%clk 0:00:10.5]} 31. Bxe6 {[%clk 0:00:25.3]}
31... Kg5 {[%clk 0:00:11]} 32. b4 {[%clk 0:00:25.2]} 32... axb4 {[%clk
0:00:08.8]} 33. axb4 {[%clk 0:00:26.1]} 33... Bd4 {[%clk 0:00:09.5]} 34. Bd7
{[%clk 0:00:23.3]} 34... Bc3 {[%clk 0:00:09.8]} 35. Bxb5 {[%clk 0:00:24.2]}
35... Bxb4 {[%clk 0:00:08]} 36. f4+ {[%clk 0:00:21.4]} 36... Kf6 {[%clk
0:00:08]} 37. Kf2 {[%clk 0:00:21.3]} 37... h6 {[%clk 0:00:08.2]} 38. Kf3 {[%clk
0:00:21.5]} 38... Be1 {[%clk 0:00:07.4]} 39. Bd3 {[%clk 0:00:21.7]} 39... Ke6
{[%clk 0:00:07.1]} 40. c4 {[%clk 0:00:21.8]} 40... Bb4 {[%clk 0:00:06.8]} 41.
Kg2 {[%clk 0:00:21.4]} 41... Kf6 {[%clk 0:00:06.3]} 42. Kh3 {[%clk 0:00:21.8]}
42... Bc5 {[%clk 0:00:07]} 43. Kh4 {[%clk 0:00:22.2]} 43... Bf2 {[%clk
0:00:07.5]} 44. Kh3 {[%clk 0:00:18.4]} 44... Bc5 {[%clk 0:00:07.5]} 45. g4
{[%clk 0:00:18.9]} 45... fxg4+ {[%clk 0:00:07.7]} 46. Kxg4 {[%clk 0:00:19.8]}
46... Bd6 {[%clk 0:00:08.4]} 47. Kf3 {[%clk 0:00:17.1]} 47... Ke6 {[%clk
0:00:05.3]} 48. Ke4 {[%clk 0:00:15.2]} 48... Be7 {[%clk 0:00:05.8]} 49. f5+
{[%clk 0:00:14.9]} 49... Kd6 {[%clk 0:00:06.1]} 50. Kf4 {[%clk 0:00:14.2]} 50...
h5 {[%clk 0:00:06.3]} 51. Kg3 {[%clk 0:00:14]} 51... Ke5 {[%clk 0:00:05.7]}
1/2-1/2